[Event "44th Chess Olympiad Women 2022"]
[Site "Chennai"]
[Date "2022.08.07"]
[Round "9.10"]
[White "Tsolakidou, Stavroula"]
[Black "Tokhirjonova, Gulrukhbegim"]
[Result "1/2-1/2"]
[WhiteElo "2362"]
[BlackElo "2329"]
[Annotator "RC"]
[PlyCount "117"]
[EventDate "2022.??.??"]
[TimeControl "60"]

1. d4 {[%emt 0:00:09]} Nf6 {[%emt 0:01:17]} 2. c4 {[%emt 0:00:11]} g6 {[%emt 0:
00:00]} 3. Nc3 {[%emt 0:00:47]} d5 {[%emt 0:00:18]} 4. cxd5 {[%emt 0:00:40]}
Nxd5 {[%emt 0:00:48]} 5. e4 {[%emt 0:00:16]} Nxc3 {[%emt 0:00:50]} 6. bxc3 {
[%emt 0:00:04]} Bg7 {[%emt 0:00:21]} 7. Nf3 {[%emt 0:00:12]} c5 {[%emt 0:00:41]
} 8. Be3 {[%emt 0:00:26]} Qa5 {[%emt 0:05:04]} 9. Qd2 {[%emt 0:00:24]} O-O {
[%emt 0:01:01]} 10. Rc1 {[%emt 0:00:37]} Bg4 {[%emt 0:10:40]} 11. Be2 {[%emt 0:
00:00]} Rd8 {[%emt 0:04:01]} 12. d5 {[%emt 0:00:49]} c4 {[%emt 0:09:24]} 13. h3
{[%emt 0:14:06]} Bxf3 {[%emt 0:02:57]} 14. gxf3 {[%emt 0:00:14]} Nd7 {[%emt 0:
00:00]} 15. Bg5 {[%emt 0:20:33]} Qa3 {[%emt 0:11:17]} 16. Kf1 {[%emt 0:10:09]}
b5 {[%emt 0:05:02]} 17. h4 {[%emt 0:03:09]} Nf6 {[%emt 0:05:47]} 18. h5 {
[%emt 0:09:25]} Nxh5 {[%emt 0:01:33]} 19. f4 {[%emt 0:00:09]} Nf6 {[%emt 0:00:
00]} 20. Bf3 {[%emt 0:00:41]} b4 {[%emt 0:04:44]} 21. e5 {[%emt 0:09:28]} Nxd5
{[%emt 0:02:41]} 22. Bxd5 {[%emt 0:00:05]} bxc3 {[%emt 0:00:08]} 23. Rxc3 {
[%emt 0:00:03]} Qc5 {[%emt 0:01:02]} 24. Bxf7+ {[%emt 0:00:14]} Kxf7 {[%emt 0:
00:00]} 25. Qc2 {[%emt 0:00:02]} Kg8 {[%emt 0:08:45]} 26. Rxc4 {[%emt 0:02:56]}
Qd5 {[%emt 0:00:04]} 27. Rh3 {[%emt 0:03:04]} Qe6 {[%emt 0:00:15]} 28. Qb3 {
[%emt 0:04:56]} Rab8 {[%emt 0:03:00]} 29. Rb4 {[%emt 0:01:20]} Qxb3 {[%emt 0:
00:00]} 30. Rhxb3 {[%emt 0:00:05]} Rxb4 {[%emt 0:00:34]} 31. Rxb4 {[%emt 0:00:
00]} Kf7 {[%emt 0:01:53]} 32. Rb7 {[%emt 0:01:03]} Bf8 {[%emt 0:00:07]} 33.
Rxa7 {[%emt 0:02:06]} Rd4 {[%emt 0:00:09]} 34. Ke2 {[%emt 0:00:34]} h6 {
[%emt 0:00:43]} 35. Ke3 {[%emt 0:00:07]} Rc4 {[%emt 0:00:13]} 36. Bh4 {[%emt 0:
00:00]} g5 {[%emt 0:01:25]} 37. Bg3 {[%emt 0:00:23]} gxf4+ {[%emt 0:00:17]} 38.
Bxf4 {[%emt 0:00:09]} h5 {[%emt 0:00:19]} 39. Bg5 {[%emt 0:13:28]} h4 {[%emt 0:
00:00]} 40. f4 {[%emt 0:00:48]} h3 {[%emt 0:00:15]} 41. Kf2 {[%emt 0:30:04]}
Rc2+ {[%emt 0:31:02]} 42. Kg1 {[%emt 0:00:06]} Re2 {[%emt 0:00:00]} 43. Kh1 {
[%emt 0:00:00]} Kg6 {[%emt 0:00:00]} 44. Ra3 {[%emt 0:00:00]} h2 {[%emt 0:00:
00]} 45. Rg3 {[%emt 0:00:00]} Kf5 {[%emt 0:01:38]} 46. Rg2 {[%emt 0:00:00]} Re3
{[%emt 0:00:05]} 47. Kxh2 {[%emt 0:00:00]} e6 {[%emt 0:00:04]} 48. Rc2 {
[%emt 0:00:00]} Ba3 {[%emt 0:00:56]} 49. Kg2 {[%emt 0:00:00]} Rd3 {[%emt 0:00:
00]} 50. Kf2 {[%emt 0:00:00]} Rh3 {[%emt 0:00:23]} 51. Ke2 {[%emt 0:00:00]} Ke4
{[%emt 0:01:07]} 52. Rc4+ {[%emt 0:00:00]} Kf5 {[%emt 0:00:36]} 53. Ra4 {
[%emt 0:00:00]} Bc1 {[%emt 0:00:20]} 54. Rc4 {[%emt 0:00:00]} Ba3 {[%emt 0:00:
00]} 55. Kd1 {[%emt 0:00:00]} Rh2 {[%emt 0:00:38]} 56. Rc2 {[%emt 0:00:00]} Rh3
{[%emt 0:00:09]} 57. Kd2 {[%emt 0:00:00]} Bb4+ {[%emt 0:00:08]} 58. Ke2 {
[%emt 0:00:00]} Ba3 {[%emt 0:00:04]} 59. Kd2 {[%emt 0:03:51]} 1/2-1/2

[Event "44th Chess Olympiad Women 2022"]
[Site "Chennai"]
[Date "2022.08.07"]
[Round "9.11"]
[White "De Seroux, Camille"]
[Black "Divya Deshmukh"]
[Result "0-1"]
[WhiteElo "2106"]
[BlackElo "2319"]
[Annotator "RC"]
[PlyCount "152"]
[EventDate "2022.??.??"]
[TimeControl "60"]

1. e4 {[%emt 0:00:04]} c5 {[%emt 0:00:19]} 2. Nf3 {[%emt 0:00:05]} d6 {[%emt 0:
00:00]} 3. d4 {[%emt 0:00:06]} cxd4 {[%emt 0:00:04]} 4. Qxd4 {[%emt 0:00:05]}
Nc6 {[%emt 0:00:36]} 5. Bb5 {[%emt 0:00:08]} Bd7 {[%emt 0:00:04]} 6. Bxc6 {
[%emt 0:00:13]} Bxc6 {[%emt 0:00:06]} 7. Nc3 {[%emt 0:00:15]} e5 {[%emt 0:00:
00]} 8. Qd3 {[%emt 0:02:55]} h6 {[%emt 0:00:07]} 9. O-O {[%emt 0:10:50]} Nf6 {
[%emt 0:00:33]} 10. Rd1 {[%emt 0:05:25]} Be7 {[%emt 0:02:32]} 11. Nh4 {[%emt 0:
00:00]} Bd7 {[%emt 0:08:05]} 12. Nf5 {[%emt 0:16:52]} Bxf5 {[%emt 0:01:12]} 13.
exf5 {[%emt 0:00:02]} O-O {[%emt 0:03:46]} 14. Ne4 {[%emt 0:08:43]} Qc7 {
[%emt 0:04:26]} 15. c4 {[%emt 0:04:06]} Rfd8 {[%emt 0:18:08]} 16. Be3 {[%emt 0:
00:00]} Rac8 {[%emt 0:03:24]} 17. Rac1 {[%emt 0:02:58]} Qa5 {[%emt 0:03:22]}
18. Nxf6+ {[%emt 0:09:16]} Bxf6 {[%emt 0:01:24]} 19. Qb3 {[%emt 0:01:16]} Qa6 {
[%emt 0:01:36]} 20. h3 {[%emt 0:04:02]} Rc6 {[%emt 0:08:03]} 21. Qb4 {[%emt 0:
00:00]} b6 {[%emt 0:06:23]} 22. a4 {[%emt 0:03:14]} Qc8 {[%emt 0:04:47]} 23. g4
{[%emt 0:04:24]} Bg5 {[%emt 0:01:30]} 24. Bxg5 {[%emt 0:01:51]} hxg5 {[%emt 0:
00:00]} 25. Rd5 {[%emt 0:00:52]} Rc5 {[%emt 0:00:07]} 26. Qd2 {[%emt 0:03:01]}
Rxc4 {[%emt 0:07:59]} 27. Rxc4 {[%emt 0:00:20]} Qxc4 {[%emt 0:00:00]} 28. Rxd6
{[%emt 0:02:06]} Rxd6 {[%emt 0:01:46]} 29. Qxd6 {[%emt 0:00:03]} Qxa4 {[%emt 0:
00:00]} 30. Qd8+ {[%emt 0:03:28]} Kh7 {[%emt 0:00:05]} 31. Qxg5 {[%emt 0:00:13]
} Qd1+ {[%emt 0:00:51]} 32. Kg2 {[%emt 0:01:05]} Qd5+ {[%emt 0:01:06]} 33. Kg1
{[%emt 0:00:25]} Qd6 {[%emt 0:01:11]} 34. Qh5+ {[%emt 0:01:18]} Kg8 {[%emt 0:
00:00]} 35. g5 {[%emt 0:00:46]} a5 {[%emt 0:04:54]} 36. g6 {[%emt 0:00:44]} Qf6
{[%emt 0:00:01]} 37. Qg4 {[%emt 0:00:42]} Kf8 {[%emt 0:00:59]} 38. Qe4 {
[%emt 0:00:40]} fxg6 {[%emt 0:03:28]} 39. fxg6 {[%emt 0:00:54]} Qe6 {[%emt 0:
00:00]} 40. Kh2 {[%emt 0:00:51]} Ke7 {[%emt 0:01:01]} 41. h4 {[%emt 0:11:26]}
Kf6 {[%emt 0:01:51]} 42. Qg2 {[%emt 0:12:08]} Qc4 {[%emt 0:03:28]} 43. Qg5+ {
[%emt 0:03:30]} Ke6 {[%emt 0:00:05]} 44. Qd8 {[%emt 0:01:17]} Kf5 {[%emt 0:00:
00]} 45. Qg5+ {[%emt 0:01:07]} Ke6 {[%emt 0:00:08]} 46. Qd8 {[%emt 0:00:13]} b5
{[%emt 0:02:57]} 47. Qg8+ {[%emt 0:02:56]} Kf6 {[%emt 0:00:32]} 48. Qd8+ {
[%emt 0:01:06]} Kxg6 {[%emt 0:00:04]} 49. Qg5+ {[%emt 0:00:40]} Kf7 {[%emt 0:
00:00]} 50. Qxe5 {[%emt 0:00:35]} Qxh4+ {[%emt 0:00:27]} 51. Kg2 {[%emt 0:00:
00]} Qg4+ {[%emt 0:00:18]} 52. Kh2 {[%emt 0:00:34]} Qc4 {[%emt 0:00:12]} 53.
Qh5+ {[%emt 0:00:33]} Kf6 {[%emt 0:00:07]} 54. Qf3+ {[%emt 0:00:40]} Kg6 {
[%emt 0:03:46]} 55. Qg3+ {[%emt 0:00:27]} Kh7 {[%emt 0:00:14]} 56. Qe5 {
[%emt 0:00:36]} Qc6 {[%emt 0:01:15]} 57. Kg1 {[%emt 0:00:30]} a4 {[%emt 0:00:
00]} 58. f4 {[%emt 0:00:37]} b4 {[%emt 0:01:16]} 59. Kf2 {[%emt 0:00:27]} a3 {
[%emt 0:01:16]} 60. bxa3 {[%emt 0:00:16]} bxa3 {[%emt 0:00:06]} 61. Qa5 {
[%emt 0:00:28]} Qc2+ {[%emt 0:02:27]} 62. Ke1 {[%emt 0:00:52]} Qe4+ {[%emt 0:
00:00]} 63. Kd1 {[%emt 0:00:17]} Qd3+ {[%emt 0:01:38]} 64. Kc1 {[%emt 0:00:23]}
Qc4+ {[%emt 0:00:10]} 65. Kb1 {[%emt 0:00:33]} Qb3+ {[%emt 0:00:03]} 66. Kc1 {
[%emt 0:00:16]} Qb2+ {[%emt 0:00:10]} 67. Kd1 {[%emt 0:00:02]} g6 {[%emt 0:00:
00]} 68. Qc7+ {[%emt 0:00:44]} Qg7 {[%emt 0:00:44]} 69. Qa5 {[%emt 0:00:44]}
Qd4+ {[%emt 0:00:04]} 70. Ke2 {[%emt 0:00:39]} Qb2+ {[%emt 0:00:26]} 71. Kf3 {
[%emt 0:00:07]} a2 {[%emt 0:00:08]} 72. Qa7+ {[%emt 0:00:56]} Kh6 {[%emt 0:00:
00]} 73. Qe7 {[%emt 0:00:42]} Qb3+ {[%emt 0:01:12]} 74. Kg4 {[%emt 0:00:26]}
a1=Q {[%emt 0:01:06]} 75. Qf8+ {[%emt 0:00:43]} Qg7 {[%emt 0:00:18]} 76. Qd8 {
[%emt 0:00:06]} Qe6+ {[%emt 0:00:08]} 0-1

[Event "44th Chess Olympiad Women 2022"]
[Site "Chennai"]
[Date "2022.08.07"]
[Round "9.11"]
[White "Gomes, Mary Ann"]
[Black "Heinatz, Gundula"]
[Result "1-0"]
[WhiteElo "2324"]
[BlackElo "2196"]
[Annotator "RC"]
[PlyCount "69"]
[EventDate "2022.??.??"]
[TimeControl "60"]

1. Nf3 {[%emt 0:00:26]} d5 {[%emt 0:00:12]} 2. g3 {[%emt 0:00:10]} Nf6 {
[%emt 0:00:28]} 3. Bg2 {[%emt 0:00:09]} c6 {[%emt 0:00:17]} 4. O-O {[%emt 0:00:
00]} Bf5 {[%emt 0:00:18]} 5. d3 {[%emt 0:00:08]} h6 {[%emt 0:00:41]} 6. b3 {
[%emt 0:00:05]} e6 {[%emt 0:00:17]} 7. Bb2 {[%emt 0:00:06]} Be7 {[%emt 0:00:48]
} 8. Nbd2 {[%emt 0:00:07]} O-O {[%emt 0:00:34]} 9. Qe1 {[%emt 0:00:06]} Bh7 {
[%emt 0:00:45]} 10. e4 {[%emt 0:00:07]} a5 {[%emt 0:01:12]} 11. a3 {[%emt 0:00:
00]} Nbd7 {[%emt 0:03:49]} 12. Qe2 {[%emt 0:00:08]} Re8 {[%emt 0:01:24]} 13. e5
{[%emt 0:00:34]} Nh5 {[%emt 0:00:57]} 14. Ne1 {[%emt 0:00:58]} g6 {[%emt 0:00:
00]} 15. f4 {[%emt 0:00:19]} Ng7 {[%emt 0:01:19]} 16. g4 {[%emt 0:00:22]} Bc5+
{[%emt 0:08:38]} 17. d4 {[%emt 0:05:18]} Ba7 {[%emt 0:02:13]} 18. Ndf3 {
[%emt 0:00:59]} c5 {[%emt 0:02:52]} 19. Nd3 {[%emt 0:05:20]} Rc8 {[%emt 0:00:
00]} 20. Kh1 {[%emt 0:02:41]} c4 {[%emt 0:01:19]} 21. bxc4 {[%emt 0:03:39]}
Rxc4 {[%emt 0:00:29]} 22. c3 {[%emt 0:01:26]} Qc7 {[%emt 0:07:57]} 23. Rfc1 {
[%emt 0:01:48]} b5 {[%emt 0:03:15]} 24. Nd2 {[%emt 0:00:48]} Rc6 {[%emt 0:00:
00]} 25. a4 {[%emt 0:02:27]} Rb8 {[%emt 0:03:24]} 26. Ba3 {[%emt 0:10:23]} Ne8
{[%emt 0:05:38]} 27. axb5 {[%emt 0:00:45]} Rxb5 {[%emt 0:02:22]} 28. Nc5 {
[%emt 0:06:19]} Rcb6 {[%emt 0:03:40]} 29. c4 {[%emt 0:00:34]} Rb2 {[%emt 0:00:
00]} 30. cxd5 {[%emt 0:01:02]} exd5 {[%emt 0:08:53]} 31. Bxb2 {[%emt 0:00:19]}
Rxb2 {[%emt 0:00:12]} 32. Nd3 {[%emt 0:01:11]} Rc2 {[%emt 0:00:42]} 33. Bxd5 {
[%emt 0:03:14]} g5 {[%emt 0:08:10]} 34. Rxc2 {[%emt 0:03:27]} Qxc2 {[%emt 0:00:
00]} 35. e6 {[%emt 0:00:13]} 1-0

[Event "44th Chess Olympiad Women 2022"]
[Site "Chennai"]
[Date "2022.08.07"]
[Round "9.11"]
[White "Hakimifard, Ghazal"]
[Black "Padmini, Rout"]
[Result "0-1"]
[WhiteElo "2296"]
[BlackElo "2374"]
[Annotator "RC"]
[PlyCount "124"]
[EventDate "2022.??.??"]
[TimeControl "60"]

1. e4 {[%emt 0:00:04]} c5 {[%emt 0:00:47]} 2. Nf3 {[%emt 0:00:04]} e6 {[%emt 0:
00:00]} 3. d4 {[%emt 0:00:05]} cxd4 {[%emt 0:00:07]} 4. Nxd4 {[%emt 0:00:02]}
Nc6 {[%emt 0:00:09]} 5. Nc3 {[%emt 0:00:07]} Qc7 {[%emt 0:00:07]} 6. Be3 {
[%emt 0:00:08]} Nf6 {[%emt 0:00:33]} 7. Be2 {[%emt 0:00:07]} a6 {[%emt 0:00:22]
} 8. O-O {[%emt 0:00:16]} Be7 {[%emt 0:00:17]} 9. f4 {[%emt 0:00:43]} d6 {
[%emt 0:00:19]} 10. Kh1 {[%emt 0:00:23]} O-O {[%emt 0:00:39]} 11. a4 {[%emt 0:
00:00]} Re8 {[%emt 0:03:43]} 12. Nb3 {[%emt 0:01:24]} b6 {[%emt 0:02:36]} 13.
Bf3 {[%emt 0:00:26]} Bb7 {[%emt 0:02:29]} 14. g4 {[%emt 0:01:31]} d5 {[%emt 0:
00:00]} 15. e5 {[%emt 0:05:41]} Ne4 {[%emt 0:02:53]} 16. Bg2 {[%emt 0:10:24]}
Nxc3 {[%emt 0:27:01]} 17. bxc3 {[%emt 0:00:03]} Nb8 {[%emt 0:00:24]} 18. a5 {
[%emt 0:07:23]} b5 {[%emt 0:05:45]} 19. Bb6 {[%emt 0:12:49]} Qxc3 {[%emt 0:00:
00]} 20. Rf3 {[%emt 0:02:25]} Qc8 {[%emt 0:01:30]} 21. Rh3 {[%emt 0:19:55]} d4
{[%emt 0:04:34]} 22. Qd3 {[%emt 0:00:08]} g6 {[%emt 0:02:07]} 23. Rg1 {[%emt 0:
00:00]} Bxg2+ {[%emt 0:02:19]} 24. Rxg2 {[%emt 0:00:04]} Nd7 {[%emt 0:00:27]}
25. Bxd4 {[%emt 0:08:08]} Nc5 {[%emt 0:00:49]} 26. Qe3 {[%emt 0:00:22]} Nxb3 {
[%emt 0:02:03]} 27. f5 {[%emt 0:08:54]} Bf8 {[%emt 0:00:18]} 28. Qxb3 {[%emt 0:
00:00]} Rd8 {[%emt 0:15:29]} 29. Qe3 {[%emt 0:04:38]} exf5 {[%emt 0:03:00]} 30.
gxf5 {[%emt 0:00:19]} Qxf5 {[%emt 0:01:52]} 31. Rf3 {[%emt 0:00:16]} Qe6 {
[%emt 0:02:12]} 32. c3 {[%emt 0:02:12]} Bg7 {[%emt 0:00:25]} 33. Qe4 {[%emt 0:
00:00]} Rac8 {[%emt 0:03:02]} 34. Rgf2 {[%emt 0:00:26]} Rd7 {[%emt 0:01:08]}
35. Re2 {[%emt 0:02:08]} Rd5 {[%emt 0:02:02]} 36. Qh4 {[%emt 0:01:21]} h6 {
[%emt 0:04:24]} 37. Re4 {[%emt 0:01:50]} Re8 {[%emt 0:02:12]} 38. Kg2 {[%emt 0:
00:00]} Rd7 {[%emt 0:00:52]} 39. Re2 {[%emt 0:00:20]} Qd5 {[%emt 0:01:31]} 40.
Qf4 {[%emt 0:00:38]} Re6 {[%emt 0:00:47]} 41. Qe4 {[%emt 0:14:54]} b4 {[%emt 0:
00:00]} 42. Qxd5 {[%emt 0:03:56]} Rxd5 {[%emt 0:00:05]} 43. Rfe3 {[%emt 0:00:
00]} b3 {[%emt 0:07:39]} 44. Rb2 {[%emt 0:01:01]} Bxe5 {[%emt 0:01:11]} 45.
Rxb3 {[%emt 0:02:48]} Bxd4 {[%emt 0:00:14]} 46. Rxe6 {[%emt 0:00:30]} fxe6 {
[%emt 0:00:03]} 47. cxd4 {[%emt 0:00:04]} Rxa5 {[%emt 0:01:43]} 48. Kf3 {
[%emt 0:02:33]} Kf7 {[%emt 0:00:15]} 49. Ke4 {[%emt 0:00:14]} Kf6 {[%emt 0:00:
00]} 50. Rb6 {[%emt 0:00:34]} g5 {[%emt 0:00:22]} 51. d5 {[%emt 0:03:09]} Rxd5
{[%emt 0:02:59]} 52. Rxa6 {[%emt 0:00:01]} Rd2 {[%emt 0:00:22]} 53. h3 {
[%emt 0:00:04]} Rf2 {[%emt 0:00:19]} 54. Ra3 {[%emt 0:00:49]} h5 {[%emt 0:00:
00]} 55. Rb3 {[%emt 0:01:20]} Rf4+ {[%emt 0:00:13]} 56. Ke3 {[%emt 0:00:02]}
Kf5 {[%emt 0:00:19]} 57. Ra3 {[%emt 0:01:17]} Rb4 {[%emt 0:00:29]} 58. Kf3 {
[%emt 0:00:29]} h4 {[%emt 0:01:34]} 59. Kf2 {[%emt 0:02:40]} e5 {[%emt 0:00:17]
} 60. Rc3 {[%emt 0:01:03]} Rb2+ {[%emt 0:00:11]} 61. Kg1 {[%emt 0:00:23]} Kf4 {
[%emt 0:00:15]} 62. Rc8 {[%emt 0:00:10]} e4 {[%emt 0:00:20]} 0-1

[Event "44th Chess Olympiad Women 2022"]
[Site "Chennai"]
[Date "2022.08.07"]
[Round "9.11"]
[White "Vantika Agrawal"]
[Black "Georgescu, Lena"]
[Result "1-0"]
[WhiteElo "2371"]
[BlackElo "2279"]
[Annotator "RC"]
[PlyCount "135"]
[EventDate "2022.??.??"]
[TimeControl "60"]

1. d4 {[%emt 0:00:38]} Nf6 {[%emt 0:00:04]} 2. c4 {[%emt 0:00:03]} e6 {[%emt 0:
00:00]} 3. Nf3 {[%emt 0:00:02]} d5 {[%emt 0:00:07]} 4. g3 {[%emt 0:00:11]} Bb4+
{[%emt 0:00:05]} 5. Bd2 {[%emt 0:00:24]} Be7 {[%emt 0:00:06]} 6. Bg2 {[%emt 0:
00:00]} O-O {[%emt 0:00:06]} 7. O-O {[%emt 0:00:40]} Nbd7 {[%emt 0:00:05]} 8.
Qc2 {[%emt 0:01:56]} c6 {[%emt 0:00:06]} 9. Bf4 {[%emt 0:00:31]} b6 {[%emt 0:
00:00]} 10. Nbd2 {[%emt 0:00:51]} Nh5 {[%emt 0:00:14]} 11. e3 {[%emt 0:01:13]}
Bb7 {[%emt 0:02:21]} 12. cxd5 {[%emt 0:04:01]} Nxf4 {[%emt 0:00:35]} 13. exf4 {
[%emt 0:01:00]} cxd5 {[%emt 0:02:54]} 14. Rfc1 {[%emt 0:05:05]} a5 {[%emt 0:00:
00]} 15. Qc7 {[%emt 0:24:18]} Ba6 {[%emt 0:01:49]} 16. Bf1 {[%emt 0:01:24]}
Bxf1 {[%emt 0:26:41]} 17. Nxf1 {[%emt 0:00:53]} b5 {[%emt 0:05:15]} 18. Qc6 {
[%emt 0:12:20]} Nf6 {[%emt 0:05:24]} 19. Qxb5 {[%emt 0:02:31]} Rb8 {[%emt 0:00:
00]} 20. Qe2 {[%emt 0:00:22]} Qb6 {[%emt 0:01:37]} 21. Rc2 {[%emt 0:00:53]} Ne4
{[%emt 0:03:01]} 22. Ne5 {[%emt 0:06:13]} Rb7 {[%emt 0:03:22]} 23. Qd3 {
[%emt 0:08:12]} h6 {[%emt 0:06:28]} 24. Rac1 {[%emt 0:02:09]} a4 {[%emt 0:00:
00]} 25. Ne3 {[%emt 0:07:37]} g6 {[%emt 0:05:15]} 26. Kg2 {[%emt 0:02:14]} Kg7
{[%emt 0:00:17]} 27. Nd1 {[%emt 0:04:27]} Ra8 {[%emt 0:02:27]} 28. Rc6 {
[%emt 0:01:59]} Qa5 {[%emt 0:01:40]} 29. Rc8 {[%emt 0:01:56]} Rxc8 {[%emt 0:00:
00]} 30. Rxc8 {[%emt 0:00:04]} Bf6 {[%emt 0:05:42]} 31. Qc2 {[%emt 0:02:40]}
Nd6 {[%emt 0:09:25]} 32. Rc5 {[%emt 0:01:26]} Qa7 {[%emt 0:02:27]} 33. Nc3 {
[%emt 0:01:47]} Nf5 {[%emt 0:00:48]} 34. Qxa4 {[%emt 0:03:26]} Qxa4 {[%emt 0:
00:00]} 35. Nxa4 {[%emt 0:00:04]} Rb4 {[%emt 0:00:56]} 36. b3 {[%emt 0:00:46]}
Rxd4 {[%emt 0:00:15]} 37. Nf3 {[%emt 0:02:23]} Rd1 {[%emt 0:00:12]} 38. Rc2 {
[%emt 0:00:50]} g5 {[%emt 0:01:24]} 39. fxg5 {[%emt 0:00:49]} hxg5 {[%emt 0:00:
00]} 40. h3 {[%emt 0:01:11]} Kg6 {[%emt 0:01:39]} 41. Nc5 {[%emt 0:05:54]} Rb1
{[%emt 0:05:18]} 42. Nd3 {[%emt 0:03:36]} Ra1 {[%emt 0:05:38]} 43. b4 {[%emt 0:
00:00]} Nd6 {[%emt 0:03:22]} 44. Nfe5+ {[%emt 0:02:51]} Kg7 {[%emt 0:09:13]}
45. Rc6 {[%emt 0:08:44]} Nc4 {[%emt 0:01:50]} 46. Nxc4 {[%emt 0:01:13]} dxc4 {
[%emt 0:00:08]} 47. Rxc4 {[%emt 0:00:14]} Rxa2 {[%emt 0:00:05]} 48. Nc5 {
[%emt 0:01:55]} Be7 {[%emt 0:05:08]} 49. Kf3 {[%emt 0:01:34]} Rb2 {[%emt 0:00:
00]} 50. Nd3 {[%emt 0:00:21]} Rb1 {[%emt 0:01:02]} 51. Rc7 {[%emt 0:01:32]} Bf6
{[%emt 0:01:44]} 52. Ke3 {[%emt 0:01:05]} Rh1 {[%emt 0:02:30]} 53. b5 {[%emt 0:
00:00]} Rxh3 {[%emt 0:00:12]} 54. b6 {[%emt 0:00:49]} Bd8 {[%emt 0:01:54]} 55.
Rb7 {[%emt 0:01:12]} Rh1 {[%emt 0:00:38]} 56. Rb8 {[%emt 0:00:30]} Be7 {
[%emt 0:00:19]} 57. Re8 {[%emt 0:00:20]} Bd6 {[%emt 0:00:41]} 58. Rd8 {[%emt 0:
00:00]} Be7 {[%emt 0:00:52]} 59. b7 {[%emt 0:00:21]} Bxd8 {[%emt 0:00:20]} 60.
b8=Q {[%emt 0:00:05]} Bf6 {[%emt 0:00:26]} 61. Qb7 {[%emt 0:01:06]} Rh6 {
[%emt 0:01:09]} 62. Nc5 {[%emt 0:00:18]} Kg8 {[%emt 0:00:30]} 63. Nd7 {[%emt 0:
00:00]} Bg7 {[%emt 0:00:15]} 64. Qc8+ {[%emt 0:00:16]} Kh7 {[%emt 0:00:04]} 65.
Qe8 {[%emt 0:00:47]} Kg6 {[%emt 0:00:21]} 66. Qg8 {[%emt 0:00:49]} Rh8 {
[%emt 0:01:21]} 67. Ne5+ {[%emt 0:00:08]} Kf5 {[%emt 0:00:32]} 68. Qxg7 {
[%emt 0:00:17]} 1-0

[Event "44th Chess Olympiad Women 2022"]
[Site "Chennai"]
[Date "2022.08.07"]
[Round "9.12"]
[White "Forgas Moreno, Yaniela"]
[Black "Koubova, Anna Marie"]
[Result "1-0"]
[WhiteElo "2343"]
[BlackElo "2115"]
[Annotator "RC"]
[PlyCount "69"]
[EventDate "2022.??.??"]
[TimeControl "60"]

1. e4 {[%emt 0:00:09]} c6 {[%emt 0:00:13]} 2. d4 {[%emt 0:00:20]} d5 {[%emt 0:
00:00]} 3. exd5 {[%emt 0:00:12]} cxd5 {[%emt 0:00:11]} 4. Bd3 {[%emt 0:00:07]}
Nc6 {[%emt 0:00:16]} 5. c3 {[%emt 0:00:09]} Nf6 {[%emt 0:00:12]} 6. Bf4 {
[%emt 0:01:08]} Bg4 {[%emt 0:00:16]} 7. Qb3 {[%emt 0:01:12]} Qd7 {[%emt 0:00:
00]} 8. Nd2 {[%emt 0:00:28]} e6 {[%emt 0:00:26]} 9. Ngf3 {[%emt 0:00:10]} Bxf3
{[%emt 0:00:25]} 10. Nxf3 {[%emt 0:00:27]} Bd6 {[%emt 0:00:21]} 11. Be3 {
[%emt 0:09:53]} O-O {[%emt 0:08:08]} 12. O-O {[%emt 0:02:00]} Rab8 {[%emt 0:00:
00]} 13. Rae1 {[%emt 0:02:19]} Qc7 {[%emt 0:05:15]} 14. Qc2 {[%emt 0:03:31]}
Rfc8 {[%emt 0:05:23]} 15. Qe2 {[%emt 0:02:53]} a6 {[%emt 0:13:36]} 16. g3 {
[%emt 0:15:57]} b5 {[%emt 0:02:24]} 17. a3 {[%emt 0:00:25]} Qb7 {[%emt 0:06:36]
} 18. Bg5 {[%emt 0:04:39]} Nd7 {[%emt 0:02:09]} 19. Bd2 {[%emt 0:06:05]} a5 {
[%emt 0:06:20]} 20. Ng5 {[%emt 0:03:28]} Nf6 {[%emt 0:04:03]} 21. f4 {[%emt 0:
00:00]} Re8 {[%emt 0:05:22]} 22. Qg2 {[%emt 0:05:33]} b4 {[%emt 0:02:41]} 23.
axb4 {[%emt 0:04:32]} axb4 {[%emt 0:00:12]} 24. Qh3 {[%emt 0:00:25]} h6 {
[%emt 0:05:51]} 25. Nf3 {[%emt 0:01:01]} bxc3 {[%emt 0:00:26]} 26. bxc3 {
[%emt 0:00:33]} Na5 {[%emt 0:10:41]} 27. f5 {[%emt 0:14:16]} exf5 {[%emt 0:00:
00]} 28. Nh4 {[%emt 0:08:55]} Qb2 {[%emt 0:03:21]} 29. Rd1 {[%emt 0:05:46]} Ne4
{[%emt 0:06:26]} 30. Nxf5 {[%emt 0:02:33]} Nxd2 {[%emt 0:01:26]} 31. Qg4 {
[%emt 0:00:32]} Bf8 {[%emt 0:00:35]} 32. Nxh6+ {[%emt 0:00:18]} Kh8 {[%emt 0:
00:00]} 33. Nxf7+ {[%emt 0:00:15]} Kg8 {[%emt 0:00:09]} 34. Bh7+ {[%emt 0:00:
00]} Kxh7 {[%emt 0:01:06]} 35. Qh5+ {[%emt 0:00:05]} 1-0

[Event "44th Chess Olympiad Women 2022"]
[Site "Chennai"]
[Date "2022.08.07"]
[Round "9.12"]
[White "Miranda Llanes, Yerisbel"]
[Black "Pilsova, Karolina"]
[Result "0-1"]
[WhiteElo "2347"]
[BlackElo "2230"]
[Annotator "RC"]
[PlyCount "68"]
[EventDate "2022.??.??"]
[TimeControl "60"]

1. d4 {[%emt 0:00:17]} Nf6 {[%emt 0:00:08]} 2. c4 {[%emt 0:00:13]} e6 {[%emt 0:
00:00]} 3. Nc3 {[%emt 0:00:05]} Bb4 {[%emt 0:00:06]} 4. e3 {[%emt 0:00:23]} O-O
{[%emt 0:00:13]} 5. Bd2 {[%emt 0:00:05]} b6 {[%emt 0:02:41]} 6. Nf3 {[%emt 0:
00:00]} Bb7 {[%emt 0:00:47]} 7. Bd3 {[%emt 0:01:21]} d5 {[%emt 0:02:16]} 8.
cxd5 {[%emt 0:00:36]} exd5 {[%emt 0:00:31]} 9. O-O {[%emt 0:00:05]} Bd6 {
[%emt 0:01:51]} 10. Qb1 {[%emt 0:00:11]} Nbd7 {[%emt 0:13:21]} 11. b4 {[%emt 0:
00:00]} a6 {[%emt 0:05:37]} 12. a4 {[%emt 0:00:16]} Re8 {[%emt 0:05:53]} 13. b5
{[%emt 0:03:21]} axb5 {[%emt 0:05:28]} 14. Nxb5 {[%emt 0:02:17]} Bf8 {[%emt 0:
00:00]} 15. Bb4 {[%emt 0:04:14]} c5 {[%emt 0:10:09]} 16. dxc5 {[%emt 0:04:25]}
Nxc5 {[%emt 0:04:19]} 17. Bc2 {[%emt 0:02:56]} Nfe4 {[%emt 0:04:14]} 18. Ra3 {
[%emt 0:07:52]} Rc8 {[%emt 0:01:37]} 19. Rd1 {[%emt 0:04:28]} Qf6 {[%emt 0:00:
00]} 20. Be1 {[%emt 0:10:48]} Qh6 {[%emt 0:08:58]} 21. Nbd4 {[%emt 0:14:15]}
Ba6 {[%emt 0:04:08]} 22. Nb5 {[%emt 0:05:47]} Qh5 {[%emt 0:02:33]} 23. Ra1 {
[%emt 0:03:54]} Re6 {[%emt 0:01:35]} 24. Qb2 {[%emt 0:10:20]} Be7 {[%emt 0:00:
00]} 25. Rdc1 {[%emt 0:10:51]} Rg6 {[%emt 0:06:14]} 26. Bd1 {[%emt 0:00:37]}
Qh3 {[%emt 0:01:40]} 27. g3 {[%emt 0:00:43]} Bf6 {[%emt 0:04:09]} 28. Nfd4 {
[%emt 0:00:41]} Nd3 {[%emt 0:03:23]} 29. Rxc8+ {[%emt 0:01:08]} Bxc8 {[%emt 0:
00:00]} 30. Qe2 {[%emt 0:02:25]} Rh6 {[%emt 0:01:54]} 31. f3 {[%emt 0:02:50]}
Nef2 {[%emt 0:01:02]} 32. Qd2 {[%emt 0:05:44]} Qxh2+ {[%emt 0:00:34]} 33. Kf1 {
[%emt 0:00:01]} Bh3+ {[%emt 0:01:07]} 34. Ke2 {[%emt 0:00:02]} Qg2 {[%emt 0:00:
00]} 0-1